[Event "*** Titled Tuesday Blitz"]
[Site "Chess.com"]
[Date "2018.07.03"]
[Round "6"]
[White "attack2mateU"]
[Black "Shant_Sargsyan"]
[Result "0-1"]
[WhiteElo "2671"]
[BlackElo "2899"]
[TimeControl "180+2"]
[EndTime "14:22:39 PDT"]
[Termination "Shant_Sargsyan won by resignation"]

1. e4 {[%clk 0:03:01.9]} 1... e5 {[%clk 0:03:00.2]} 2. Nf3 {[%clk 0:03:01.7]}
2... Nc6 {[%clk 0:03:01.5]} 3. d4 {[%clk 0:03:01]} 3... exd4 {[%clk 0:03:01.6]}
4. Nxd4 {[%clk 0:03:02.9]} 4... Bc5 {[%clk 0:03:02.4]} 5. Nb3 {[%clk 0:03:03.4]}
5... Bb6 {[%clk 0:03:03.6]} 6. Nc3 {[%clk 0:03:04]} 6... Qf6 {[%clk 0:03:05.2]}
7. Qe2 {[%clk 0:03:02.7]} 7... Nge7 {[%clk 0:03:06.6]} 8. Be3 {[%clk 0:03:02.8]}
8... d6 {[%clk 0:03:07.1]} 9. O-O-O {[%clk 0:03:02.9]} 9... Be6 {[%clk
0:03:07.9]} 10. Nd5 {[%clk 0:02:53]} 10... Bxd5 {[%clk 0:02:59.8]} 11. exd5
{[%clk 0:02:54.9]} 11... Ne5 {[%clk 0:03:01.4]} 12. f4 {[%clk 0:02:02.1]} 12...
Nc4 {[%clk 0:02:32.6]} 13. Qxc4 {[%clk 0:01:54.1]} 13... Bxe3+ {[%clk
0:02:32.7]} 14. Kb1 {[%clk 0:01:55.7]} 14... Bb6 {[%clk 0:02:33.8]} 15. Qa4+
{[%clk 0:01:51.6]} 15... c6 {[%clk 0:02:29]} 16. dxc6 {[%clk 0:01:38.9]} 16...
bxc6 {[%clk 0:02:30.1]} 17. Be2 {[%clk 0:00:46.7]} 17... O-O {[%clk 0:02:28.4]}
18. Bf3 {[%clk 0:00:48.2]} 18... d5 {[%clk 0:02:28.6]} 19. g4 {[%clk 0:00:48.2]}
19... Ng6 {[%clk 0:02:23.5]} 20. f5 {[%clk 0:00:47]} 20... Ne5 {[%clk
0:02:24.7]} 21. Be2 {[%clk 0:00:44]} 21... Rfe8 {[%clk 0:02:20.8]} 22. h4 {[%clk
0:00:43.2]} 22... Rad8 {[%clk 0:01:54.5]} 23. Rdf1 {[%clk 0:00:42.8]} 23... Nc4
{[%clk 0:01:26.8]} 24. Bxc4 {[%clk 0:00:42.9]} 24... Re4 {[%clk 0:01:28.2]} 25.
g5 {[%clk 0:00:38.9]} 25... Qd6 {[%clk 0:01:24.6]} 26. Nd2 {[%clk 0:00:34.4]}
26... Rd4 {[%clk 0:01:25]} 27. Nf3 {[%clk 0:00:18.4]} 27... Rxc4 {[%clk
0:01:25]} 28. Qa6 {[%clk 0:00:17.8]} 28... Rb8 {[%clk 0:01:15.9]} 29. h5 {[%clk
0:00:17.3]} 29... Rf4 {[%clk 0:01:09.4]} 30. g6 {[%clk 0:00:15.7]} 30... fxg6
{[%clk 0:01:00]} 31. hxg6 {[%clk 0:00:16.2]} 31... h6 {[%clk 0:01:01]} 32. Qd3
{[%clk 0:00:16.1]} 32... Rf8 {[%clk 0:00:49.9]} 33. Ng5 {[%clk 0:00:12.1]} 33...
R8xf5 {[%clk 0:00:36.3]} 34. Nf7 {[%clk 0:00:05.9]} 34... Rxf1+ {[%clk
0:00:32.9]} 35. Rxf1 {[%clk 0:00:07.8]} 35... Rxf1+ {[%clk 0:00:34.2]} 36. Qxf1
{[%clk 0:00:09.4]} 36... Qxg6 {[%clk 0:00:35.2]} 37. Ne5 {[%clk 0:00:08.6]}
37... Qe6 {[%clk 0:00:27.6]} 38. Nd3 {[%clk 0:00:03.6]} 38... Kh7 {[%clk
0:00:26.9]} 39. a3 {[%clk 0:00:04.8]} 39... Bd4 {[%clk 0:00:26.2]} 40. Qf8
{[%clk 0:00:05.3]} 40... Bf6 {[%clk 0:00:25.4]} 41. Nf4 {[%clk 0:00:02.4]} 41...
Qe1+ {[%clk 0:00:22.2]} 42. Ka2 {[%clk 0:00:03.2]} 42... Qe4 {[%clk 0:00:23.1]}
43. Nd3 {[%clk 0:00:03.3]} 43... h5 {[%clk 0:00:10.6]} 44. Qf7 {[%clk
0:00:03.8]} 44... Qg6 {[%clk 0:00:10.4]} 45. Qxa7 {[%clk 0:00:04.1]} 45... h4
{[%clk 0:00:11.4]} 46. Qe3 {[%clk 0:00:05.4]} 46... Qe4 {[%clk 0:00:11.7]} 47.
Qh3 {[%clk 0:00:05.9]} 47... Qc4+ {[%clk 0:00:12.7]} 48. Kb1 {[%clk 0:00:06.7]}
48... Qe4 {[%clk 0:00:13.6]} 49. Ka2 {[%clk 0:00:04.2]} 49... g5 {[%clk
0:00:12.9]} 50. Nf2 {[%clk 0:00:03.3]} 50... Qxc2 {[%clk 0:00:05.8]} 51. Nd3
{[%clk 0:00:03.7]} 51... Qc4+ {[%clk 0:00:06.2]} 52. Kb1 {[%clk 0:00:05.2]}
52... Qe4 {[%clk 0:00:07.3]} 53. Kc2 {[%clk 0:00:05.9]} 53... Kg6 {[%clk
0:00:08.4]} 54. Qd7 {[%clk 0:00:06.6]} 54... Qc4+ {[%clk 0:00:09.4]} 55. Kd2
{[%clk 0:00:07.6]} 55... Qe4 {[%clk 0:00:06.4]} 56. Qxc6 {[%clk 0:00:08.4]}
56... h3 {[%clk 0:00:07.2]} 57. Qc8 {[%clk 0:00:08.2]} 57... Qg2+ {[%clk
0:00:06.6]} 58. Kd1 {[%clk 0:00:08.4]} 58... h2 {[%clk 0:00:06.4]} 59. Nf4+
{[%clk 0:00:09.1]} 59... Kh6 {[%clk 0:00:03.3]} 60. Nxg2 {[%clk 0:00:08.7]}
60... h1=Q+ {[%clk 0:00:03.9]} 61. Ne1 {[%clk 0:00:10.6]} 61... Qe4 {[%clk
0:00:04.8]} 62. Qh3+ {[%clk 0:00:11.2]} 62... Kg7 {[%clk 0:00:04.7]} 63. Nd3
{[%clk 0:00:11]} 63... g4 {[%clk 0:00:05.1]} 64. Qg3 {[%clk 0:00:12.5]} 64...
Kg6 {[%clk 0:00:05]} 65. b3 {[%clk 0:00:11.9]} 65... Bg5 {[%clk 0:00:04.2]} 66.
a4 {[%clk 0:00:12.4]} 66... Be3 {[%clk 0:00:05.3]} 67. Kc2 {[%clk 0:00:12.8]}
67... Kf5 {[%clk 0:00:06.6]} 68. a5 {[%clk 0:00:13.6]} 68... Qf3 {[%clk
0:00:07.9]} 69. Qe5+ {[%clk 0:00:12.2]} 69... Kg6 {[%clk 0:00:08.9]} 70. Qe6+
{[%clk 0:00:10.2]} 70... Kg5 {[%clk 0:00:10.1]} 71. Qe7+ {[%clk 0:00:09.5]}
71... Kh5 {[%clk 0:00:06.8]} 72. Qh7+ {[%clk 0:00:09.7]} 72... Bh6 {[%clk
0:00:07.8]} 73. Qd7 {[%clk 0:00:07.4]} 73... g3 {[%clk 0:00:04.2]} 74. Qh3+
{[%clk 0:00:08.3]} 74... Kg5 {[%clk 0:00:05.1]} 75. a6 {[%clk 0:00:04.8]} 75...
Qe2+ {[%clk 0:00:04.7]} 76. Kc3 {[%clk 0:00:05.2]} 76... Bg7+ {[%clk 0:00:06]}
77. Kb4 {[%clk 0:00:06.5]} 77... Qxd3 {[%clk 0:00:07.4]} 78. a7 {[%clk
0:00:05.1]} 78... Bf8+ {[%clk 0:00:05.5]} 79. Ka5 {[%clk 0:00:04.6]} 79... Qc3+
{[%clk 0:00:05.8]} 80. Ka6 {[%clk 0:00:04.4]} 80... Qc6+ {[%clk 0:00:06.2]} 81.
Ka5 {[%clk 0:00:04.9]} 81... Qc7+ {[%clk 0:00:07.4]} 82. Ka6 {[%clk 0:00:05.9]}
82... Qc6+ {[%clk 0:00:08.6]} 83. Ka5 {[%clk 0:00:07.1]} 83... Bd6 {[%clk
0:00:08.1]} 84. Qh8 {[%clk 0:00:05.2]} 84... Bc7+ {[%clk 0:00:09.2]} 85. Kb4
{[%clk 0:00:06]} 85... Qb6+ {[%clk 0:00:10.7]} 86. Kc3 {[%clk 0:00:07.2]} 86...
Qxa7 {[%clk 0:00:09.8]} 87. Qg7+ {[%clk 0:00:08]} 87... Kf5 {[%clk 0:00:10.7]}
88. Qf7+ {[%clk 0:00:08.9]} 88... Kg4 {[%clk 0:00:10.9]} 89. Qe6+ {[%clk
0:00:08.5]} 89... Kf4 {[%clk 0:00:08.4]} 90. Qf7+ {[%clk 0:00:09.4]} 90... Ke4
{[%clk 0:00:09]} 91. Qe6+ {[%clk 0:00:10.5]} 91... Be5+ {[%clk 0:00:10.1]} 92.
Kc2 {[%clk 0:00:09.4]} 92... Qa2+ {[%clk 0:00:11.4]} 93. Kd1 {[%clk 0:00:10.1]}
93... Qxb3+ {[%clk 0:00:12.5]} 94. Ke2 {[%clk 0:00:11.1]} 94... Qe3+ {[%clk
0:00:13.7]} 95. Kd1 {[%clk 0:00:12.5]} 95... Qd3+ {[%clk 0:00:14.9]} 96. Kc1
{[%clk 0:00:10.7]} 96... Qf1+ {[%clk 0:00:14.4]} 97. Kd2 {[%clk 0:00:11.4]}
97... g2 {[%clk 0:00:16.3]} 98. Qg6+ {[%clk 0:00:11.6]} 98... Kd4 {[%clk
0:00:15.9]} 99. Qb6+ {[%clk 0:00:10.9]} 99... Ke4 {[%clk 0:00:17.1]} 100. Qg6+
{[%clk 0:00:12]} 100... Kf4 {[%clk 0:00:16.4]} 101. Qh6+ {[%clk 0:00:11.6]}
101... Kg4 {[%clk 0:00:16.7]} 102. Qg6+ {[%clk 0:00:12.8]} 102... Kh4 {[%clk
0:00:06.7]} 103. Qh6+ {[%clk 0:00:13.3]} 103... Kg3 {[%clk 0:00:04.2]} 104. Qg5+
{[%clk 0:00:13.2]} 104... Kf3 {[%clk 0:00:05.7]} 105. Qh5+ {[%clk 0:00:07.2]}
105... Kf4 {[%clk 0:00:05.2]} 106. Qf7+ {[%clk 0:00:07.9]} 106... Kg5 {[%clk
0:00:05.5]} 107. Qg8+ {[%clk 0:00:06]} 107... Kh6 {[%clk 0:00:05.7]} 108. Qe6+
{[%clk 0:00:07.2]} 108... Qf6 {[%clk 0:00:05]} 109. Qh3+ {[%clk 0:00:08.1]}
109... Kg6 {[%clk 0:00:06.4]} 110. Qxg2+ {[%clk 0:00:05.9]} 110... Qg5+ {[%clk
0:00:07.8]} 111. Qxg5+ {[%clk 0:00:07.2]} 111... Kxg5 {[%clk 0:00:09.7]} 0-1

[Event "*** Titled Tuesday Blitz"]
[Site "Chess.com"]
[Date "2018.07.03"]
[Round "7"]
[White "joejan"]
[Black "1b31-0"]
[Result "0-1"]
[WhiteElo "2242"]
[BlackElo "2213"]
[TimeControl "180+2"]
[EndTime "14:26:13 PDT"]
[Termination "1b31-0 won by resignation"]

1. e4 {[%clk 0:03:01.9]} 1... g6 {[%clk 0:03:01.9]} 2. d4 {[%clk 0:03:02.1]}
2... Bg7 {[%clk 0:02:59.1]} 3. Nc3 {[%clk 0:03:03.6]} 3... d6 {[%clk 0:03:00.3]}
4. Bc4 {[%clk 0:03:01.1]} 4... a6 {[%clk 0:03:00.4]} 5. a4 {[%clk 0:02:59.8]}
5... b6 {[%clk 0:03:01.6]} 6. Be3 {[%clk 0:02:55.6]} 6... e6 {[%clk 0:03:01.2]}
7. f3 {[%clk 0:02:56.2]} 7... Nd7 {[%clk 0:03:01.6]} 8. h4 {[%clk 0:02:53.4]}
8... h6 {[%clk 0:03:01.4]} 9. Qd2 {[%clk 0:02:54.1]} 9... Bf6 {[%clk 0:02:56.5]}
10. g3 {[%clk 0:02:46.1]} 10... Bg7 {[%clk 0:02:56.6]} 11. g4 {[%clk 0:02:43.5]}
11... Bb7 {[%clk 0:02:56.1]} 12. O-O-O {[%clk 0:02:41.1]} 12... Ne7 {[%clk
0:02:55.8]} 13. Nh3 {[%clk 0:02:40.2]} 13... Nf6 {[%clk 0:02:29.2]} 14. g5
{[%clk 0:02:35.3]} 14... hxg5 {[%clk 0:02:30.1]} 15. hxg5 {[%clk 0:02:34.9]}
15... Nh5 {[%clk 0:02:29.8]} 16. Nf4 {[%clk 0:02:34.4]} 16... Nxf4 {[%clk
0:02:29.8]} 17. Rxh8+ {[%clk 0:02:31.6]} 17... Bxh8 {[%clk 0:02:31.6]} 18. Bxf4
{[%clk 0:02:32.7]} 18... Qd7 {[%clk 0:02:30.8]} 19. Qd3 {[%clk 0:02:24.5]} 19...
Nc6 {[%clk 0:02:08.3]} 20. Be3 {[%clk 0:02:24.7]} 20... Nb4 {[%clk 0:02:02.7]}
21. Rh1 {[%clk 0:02:19.3]} 21... Nxd3+ {[%clk 0:02:02.1]} 0-1

[Event "*** Titled Tuesday Blitz"]
[Site "Chess.com"]
[Date "2018.07.03"]
[Round "7"]
[White "Orest_Vovk"]
[Black "AndrewDGreen"]
[Result "1-0"]
[WhiteElo "2244"]
[BlackElo "2176"]
[TimeControl "180+2"]
[EndTime "14:26:37 PDT"]
[Termination "Orest_Vovk won by resignation"]

1. h4 {[%clk 0:03:01.9]} 1... d5 {[%clk 0:02:52.5]} 2. h5 {[%clk 0:03:02.5]}
2... Bf5 {[%clk 0:02:47.3]} 3. Nc3 {[%clk 0:02:54.1]} 3... Nf6 {[%clk
0:02:45.4]} 4. d3 {[%clk 0:02:45.7]} 4... d4 {[%clk 0:02:44.8]} 5. e4 {[%clk
0:02:46.7]} 5... dxc3 {[%clk 0:01:57]} 6. exf5 {[%clk 0:02:43.8]} 6... Qd5
{[%clk 0:01:54.2]} 7. bxc3 {[%clk 0:02:39.7]} 7... Qxf5 {[%clk 0:01:48.5]} 8.
Nf3 {[%clk 0:02:37.8]} 8... Nc6 {[%clk 0:01:47.8]} 9. Rb1 {[%clk 0:02:34.8]}
9... O-O-O {[%clk 0:01:46.7]} 10. Rh4 {[%clk 0:02:23.5]} 10... e5 {[%clk
0:01:42.2]} 11. g3 {[%clk 0:02:23.7]} 11... g5 {[%clk 0:01:18.1]} 12. Bxg5
{[%clk 0:02:11.5]} 1-0

[Event "*** Titled Tuesday Blitz"]
[Site "Chess.com"]
[Date "2018.07.03"]
[Round "7"]
[White "krzysztofszczurek"]
[Black "ENEASZ"]
[Result "0-1"]
[WhiteElo "2377"]
[BlackElo "2512"]
[TimeControl "180+2"]
[EndTime "14:27:09 PDT"]
[Termination "ENEASZ won by checkmate"]

1. e4 {[%clk 0:03:00.1]} 1... e5 {[%clk 0:03:01.1]} 2. Nf3 {[%clk 0:03:00.5]}
2... Nc6 {[%clk 0:03:02.4]} 3. Bc4 {[%clk 0:03:01.1]} 3... Nf6 {[%clk
0:03:02.2]} 4. d3 {[%clk 0:03:01.9]} 4... Be7 {[%clk 0:03:02.2]} 5. c3 {[%clk
0:02:58.8]} 5... O-O {[%clk 0:03:02.8]} 6. Nbd2 {[%clk 0:02:59.2]} 6... d5
{[%clk 0:03:01.9]} 7. Bb3 {[%clk 0:02:59.7]} 7... dxe4 {[%clk 0:02:54.8]} 8.
dxe4 {[%clk 0:03:00.1]} 8... Nd7 {[%clk 0:02:56.2]} 9. Bc2 {[%clk 0:02:53.8]}
9... a5 {[%clk 0:02:56.1]} 10. Qe2 {[%clk 0:02:53.5]} 10... Nc5 {[%clk
0:02:55.8]} 11. Nf1 {[%clk 0:02:54.2]} 11... b6 {[%clk 0:02:56.3]} 12. Be3
{[%clk 0:02:50.5]} 12... Ba6 {[%clk 0:02:56.6]} 13. Qd2 {[%clk 0:02:50.2]} 13...
Qc8 {[%clk 0:02:48]} 14. O-O-O {[%clk 0:02:42.2]} 14... Rd8 {[%clk 0:02:46.4]}
15. Qe1 {[%clk 0:02:43.1]} 15... Qe6 {[%clk 0:02:46.9]} 16. Kb1 {[%clk
0:02:40.7]} 16... a4 {[%clk 0:02:39]} 17. Bxc5 {[%clk 0:02:38.8]} 17... Bxc5
{[%clk 0:02:33.6]} 18. Ne3 {[%clk 0:02:39.6]} 18... Bxe3 {[%clk 0:02:25.1]} 19.
Qxe3 {[%clk 0:02:36.3]} 19... Bc4 {[%clk 0:02:26]} 20. a3 {[%clk 0:02:33.9]}
20... Ba2+ {[%clk 0:02:19.3]} 21. Ka1 {[%clk 0:02:33.6]} 21... Bb3 {[%clk
0:02:17.4]} 22. Ng5 {[%clk 0:02:22.9]} 22... Qg4 {[%clk 0:02:04.8]} 23. f3
{[%clk 0:02:00.5]} 23... Qxg2 {[%clk 0:02:01.4]} 24. Bxb3 {[%clk 0:01:58.2]}
24... axb3 {[%clk 0:02:01.2]} 25. Rdg1 {[%clk 0:01:54.4]} 25... Rxa3+ {[%clk
0:02:01.6]} 26. bxa3 {[%clk 0:01:52.8]} 26... Qa2# {[%clk 0:02:03.5]} 0-1

[Event "*** Titled Tuesday Blitz"]
[Site "Chess.com"]
[Date "2018.07.03"]
[Round "7"]
[White "Mimsychess"]
[Black "Triumphmate"]
[Result "0-1"]
[WhiteElo "2284"]
[BlackElo "2236"]
[TimeControl "180+2"]
[EndTime "14:28:21 PDT"]
[Termination "Triumphmate won by resignation"]

1. e4 {[%clk 0:03:01.9]} 1... d5 {[%clk 0:02:59.8]} 2. exd5 {[%clk 0:03:02.5]}
2... Nf6 {[%clk 0:03:00.7]} 3. Nf3 {[%clk 0:03:04]} 3... Bg4 {[%clk 0:03:00.6]}
4. Bb5+ {[%clk 0:03:02.7]} 4... c6 {[%clk 0:02:56.8]} 5. dxc6 {[%clk 0:03:03]}
5... Nxc6 {[%clk 0:02:58.7]} 6. h3 {[%clk 0:03:01.4]} 6... Bh5 {[%clk
0:02:57.5]} 7. O-O {[%clk 0:03:00]} 7... e6 {[%clk 0:02:55.9]} 8. d3 {[%clk
0:02:56.6]} 8... Bd6 {[%clk 0:02:54.2]} 9. Nbd2 {[%clk 0:02:52.5]} 9... O-O
{[%clk 0:02:52.5]} 10. Ne4 {[%clk 0:02:51.6]} 10... Nd4 {[%clk 0:02:49.6]} 11.
Nxf6+ {[%clk 0:02:36.2]} 11... Qxf6 {[%clk 0:02:49.2]} 12. Bg5 {[%clk
0:01:34.5]} 12... Nxf3+ {[%clk 0:02:42.4]} 13. Qxf3 {[%clk 0:01:34.9]} 13...
Qxg5 {[%clk 0:02:40.5]} 14. g4 {[%clk 0:01:33.9]} 14... Qxb5 {[%clk 0:02:37.9]}
15. gxh5 {[%clk 0:01:35]} 15... Qxb2 {[%clk 0:02:31.5]} 16. h6 {[%clk
0:01:34.8]} 16... gxh6 {[%clk 0:02:23.8]} 17. Kh1 {[%clk 0:01:34.2]} 17... Kh8
{[%clk 0:02:13.8]} 18. Rab1 {[%clk 0:01:24.9]} 18... Qe5 {[%clk 0:02:12.3]} 19.
Qg2 {[%clk 0:01:23.7]} 19... Rg8 {[%clk 0:02:13]} 20. f4 {[%clk 0:01:25]} 20...
Qd5 {[%clk 0:01:27.9]} 21. Qxd5 {[%clk 0:01:23.9]} 21... exd5 {[%clk 0:01:29.8]}
22. Rxb7 {[%clk 0:01:22.1]} 22... Rab8 {[%clk 0:01:28.2]} 23. Rd7 {[%clk
0:01:16.2]} 23... Rb6 {[%clk 0:01:19.8]} 24. Rxf7 {[%clk 0:01:15.5]} 24... Rb2
{[%clk 0:01:20]} 25. Re7 {[%clk 0:01:11.7]} 25... Bxe7 {[%clk 0:01:20.5]} 0-1

[Event "*** Titled Tuesday Blitz"]
[Site "Chess.com"]
[Date "2018.07.03"]
[Round "7"]
[White "djogrodek1"]
[Black "FairChess_on_YouTube"]
[Result "0-1"]
[WhiteElo "2500"]
[BlackElo "2920"]
[TimeControl "180+2"]
[EndTime "14:28:53 PDT"]
[Termination "FairChess_on_YouTube won on time"]

1. e4 {[%clk 0:03:01.5]} 1... c5 {[%clk 0:03:00.4]} 2. Nf3 {[%clk 0:02:53.9]}
2... e6 {[%clk 0:03:01.6]} 3. d4 {[%clk 0:02:46.2]} 3... cxd4 {[%clk 0:03:03.5]}
4. Nxd4 {[%clk 0:02:47.3]} 4... Nc6 {[%clk 0:03:05.1]} 5. Nc3 {[%clk 0:02:48.5]}
5... a6 {[%clk 0:03:05.6]} 6. Be3 {[%clk 0:02:48.6]} 6... Nf6 {[%clk 0:03:06]}
7. a3 {[%clk 0:02:33.8]} 7... Qc7 {[%clk 0:03:01.9]} 8. f4 {[%clk 0:02:28.6]}
8... d6 {[%clk 0:02:49.9]} 9. Qf3 {[%clk 0:02:27.4]} 9... Bd7 {[%clk 0:02:45.9]}
10. O-O-O {[%clk 0:02:26.6]} 10... h5 {[%clk 0:02:46.5]} 11. Kb1 {[%clk
0:02:19.5]} 11... Rb8 {[%clk 0:02:46.2]} 12. Bd3 {[%clk 0:01:54.4]} 12... b5
{[%clk 0:02:45.8]} 13. Nxc6 {[%clk 0:01:19.2]} 13... Bxc6 {[%clk 0:02:45.4]} 14.
Qe2 {[%clk 0:01:20.6]} 14... b4 {[%clk 0:02:33.8]} 15. axb4 {[%clk 0:01:20.1]}
15... Rxb4 {[%clk 0:02:35.7]} 16. Bxa6 {[%clk 0:00:54.3]} 16... Be7 {[%clk
0:02:36.2]} 17. Bb5 {[%clk 0:00:39.3]} 17... O-O {[%clk 0:02:33.3]} 18. Bxc6
{[%clk 0:00:40.6]} 18... Qxc6 {[%clk 0:02:33.9]} 19. Na2 {[%clk 0:00:26.3]}
19... Rxe4 {[%clk 0:02:25]} 20. Qd3 {[%clk 0:00:24.7]} 20... Ra8 {[%clk
0:02:24.9]} 21. b3 {[%clk 0:00:11.4]} 21... Rxe3 {[%clk 0:02:03.2]} 22. Qxe3
{[%clk 0:00:11.6]} 22... Qa6 {[%clk 0:02:04.7]} 23. Kc1 {[%clk 0:00:07]} 23...
Qxa2 {[%clk 0:02:04.9]} 24. Kd2 {[%clk 0:00:08.9]} 24... Nd5 {[%clk 0:02:00.4]}
25. Qd3 {[%clk 0:00:03]} 25... Bf6 {[%clk 0:01:59.2]} 0-1

[Event "*** Titled Tuesday Blitz"]
[Site "Chess.com"]
[Date "2018.07.03"]
[Round "7"]
[White "plouarzel"]
[Black "ChrisTool2"]
[Result "1-0"]
[WhiteElo "2484"]
[BlackElo "2266"]
[TimeControl "180+2"]
[EndTime "14:29:32 PDT"]
[Termination "plouarzel won by resignation"]

1. e4 {[%clk 0:03:01.9]} 1... c5 {[%clk 0:02:59.4]} 2. Nf3 {[%clk 0:03:02.9]}
2... e6 {[%clk 0:03:00.2]} 3. g3 {[%clk 0:03:02.9]} 3... Nc6 {[%clk 0:02:59.6]}
4. Bg2 {[%clk 0:03:03.5]} 4... d6 {[%clk 0:02:59.8]} 5. O-O {[%clk 0:03:04.1]}
5... g6 {[%clk 0:03:01.3]} 6. d4 {[%clk 0:03:02.9]} 6... cxd4 {[%clk 0:03:00.4]}
7. Nxd4 {[%clk 0:03:04.8]} 7... Bg7 {[%clk 0:02:51.1]} 8. Nb5 {[%clk 0:03:01.8]}
8... Ke7 {[%clk 0:02:44.5]} 9. Bg5+ {[%clk 0:02:34.8]} 9... f6 {[%clk 0:02:45]}
10. Be3 {[%clk 0:02:34.5]} 10... Nh6 {[%clk 0:02:37.9]} 11. N1a3 {[%clk
0:02:33.2]} 11... Nf7 {[%clk 0:02:31.7]} 12. Nc4 {[%clk 0:02:25.7]} 12... Nce5
{[%clk 0:02:07.4]} 13. Nxe5 {[%clk 0:02:04.8]} 13... Nxe5 {[%clk 0:02:01.4]} 14.
b3 {[%clk 0:01:58]} 14... a6 {[%clk 0:01:54.2]} 15. Nd4 {[%clk 0:01:56.3]} 15...
Bd7 {[%clk 0:01:38.8]} 16. c4 {[%clk 0:01:56]} 16... Re8 {[%clk 0:01:22.8]} 17.
f4 {[%clk 0:01:56.4]} 17... Nc6 {[%clk 0:01:23.9]} 18. f5 {[%clk 0:01:55.8]}
18... e5 {[%clk 0:01:14.4]} 19. Ne2 {[%clk 0:01:54.3]} 19... Kf7 {[%clk
0:01:11.2]} 20. Nc3 {[%clk 0:01:53.9]} 20... Qa5 {[%clk 0:00:46.1]} 21. Nd5
{[%clk 0:01:41.4]} 21... Nd4 {[%clk 0:00:22.6]} 22. Bxd4 {[%clk 0:01:38]} 22...
exd4 {[%clk 0:00:24.5]} 23. Qxd4 {[%clk 0:01:39.1]} 23... Re5 {[%clk 0:00:24.1]}
24. Kh1 {[%clk 0:01:35.2]} 24... Rae8 {[%clk 0:00:22.2]} 25. Rf2 {[%clk
0:01:34.7]} 25... Bc6 {[%clk 0:00:21]} 26. fxg6+ {[%clk 0:01:31.1]} 26... hxg6
{[%clk 0:00:21.6]} 27. Raf1 {[%clk 0:01:32.2]} 27... b5 {[%clk 0:00:20]} 28.
Nxf6 {[%clk 0:01:31.1]} 28... Bxf6 {[%clk 0:00:17.5]} 29. Rxf6+ {[%clk 0:01:33]}
29... Kg7 {[%clk 0:00:18.2]} 30. Qxd6 {[%clk 0:01:33.8]} 30... Rxe4 {[%clk
0:00:09.9]} 31. Rxg6+ {[%clk 0:01:34.1]} 31... Kh8 {[%clk 0:00:10.4]} 32. Rh6+
{[%clk 0:01:35.6]} 1-0

[Event "*** Titled Tuesday Blitz"]
[Site "Chess.com"]
[Date "2018.07.03"]
[Round "7"]
[White "ama18"]
[Black "ChessMavenYeti"]
[Result "1-0"]
[WhiteElo "2272"]
[BlackElo "2198"]
[TimeControl "180+2"]
[EndTime "14:29:44 PDT"]
[Termination "ama18 won by checkmate"]

1. e4 {[%clk 0:02:30.3]} 1... e6 {[%clk 0:03:00.3]} 2. d4 {[%clk 0:02:30]} 2...
d5 {[%clk 0:03:01.6]} 3. Nd2 {[%clk 0:02:31.5]} 3... c5 {[%clk 0:03:01.8]} 4.
exd5 {[%clk 0:02:32.3]} 4... Qxd5 {[%clk 0:03:02.9]} 5. dxc5 {[%clk 0:02:34.2]}
5... Nf6 {[%clk 0:03:02.4]} 6. Ngf3 {[%clk 0:02:36.1]} 6... Qxc5 {[%clk
0:03:03.3]} 7. Bd3 {[%clk 0:02:37.9]} 7... a6 {[%clk 0:02:56.6]} 8. O-O {[%clk
0:02:39.8]} 8... Qc7 {[%clk 0:02:45.6]} 9. Qe2 {[%clk 0:02:41.6]} 9... Bd6
{[%clk 0:02:45]} 10. Nc4 {[%clk 0:02:34.5]} 10... Bf4 {[%clk 0:02:45.3]} 11.
Bxf4 {[%clk 0:02:33.5]} 11... Qxf4 {[%clk 0:02:46.3]} 12. Nce5 {[%clk
0:02:35.4]} 12... O-O {[%clk 0:02:39.1]} 13. c3 {[%clk 0:02:30.9]} 13... Nbd7
{[%clk 0:02:36.2]} 14. Rad1 {[%clk 0:02:30.3]} 14... Nxe5 {[%clk 0:02:34.7]} 15.
Nxe5 {[%clk 0:02:32.1]} 15... b5 {[%clk 0:02:24.3]} 16. g3 {[%clk 0:02:29.1]}
16... Qh6 {[%clk 0:02:11.1]} 17. f4 {[%clk 0:02:18.4]} 17... Bb7 {[%clk
0:02:10.7]} 18. Bc2 {[%clk 0:02:10.9]} 18... Rfd8 {[%clk 0:02:10.4]} 19. Rxd8+
{[%clk 0:02:09.1]} 19... Rxd8 {[%clk 0:02:12.3]} 20. Rd1 {[%clk 0:02:10.4]}
20... Rxd1+ {[%clk 0:02:01.4]} 21. Qxd1 {[%clk 0:02:12.3]} 21... Bd5 {[%clk
0:01:58]} 22. b3 {[%clk 0:02:04.7]} 22... Qh3 {[%clk 0:01:58]} 23. Qd2 {[%clk
0:02:00.9]} 23... g6 {[%clk 0:01:48.3]} 24. c4 {[%clk 0:02:00.1]} 24... bxc4
{[%clk 0:01:46.3]} 25. bxc4 {[%clk 0:02:02]} 25... Ne4 {[%clk 0:01:42.5]} 26.
Qe3 {[%clk 0:01:46.3]} 26... Nc3 {[%clk 0:00:23.9]} 27. cxd5 {[%clk 0:01:28.2]}
27... Nxd5 {[%clk 0:00:25.8]} 28. Qa7 {[%clk 0:01:23.5]} 28... f6 {[%clk
0:00:18.6]} 29. Qf7+ {[%clk 0:01:20]} 29... Kh8 {[%clk 0:00:19.8]} 30. Qf8#
{[%clk 0:01:21.9]} 1-0

[Event "*** Titled Tuesday Blitz"]
[Site "Chess.com"]
[Date "2018.07.03"]
[Round "7"]
[White "HanSchut"]
[Black "AsaHoffmann"]
[Result "0-1"]
[WhiteElo "2252"]
[BlackElo "1997"]
[TimeControl "180+2"]
[EndTime "14:29:44 PDT"]
[Termination "AsaHoffmann won by resignation"]

1. e4 {[%clk 0:03:01.9]} 1... d6 {[%clk 0:02:59.7]} 2. d4 {[%clk 0:03:02.1]}
2... Nf6 {[%clk 0:02:59.7]} 3. Nc3 {[%clk 0:03:03]} 3... c6 {[%clk 0:03:00.4]}
4. f4 {[%clk 0:03:04.4]} 4... Qa5 {[%clk 0:02:58.8]} 5. Bd3 {[%clk 0:03:02.8]}
5... e5 {[%clk 0:02:58.9]} 6. Nf3 {[%clk 0:03:02.9]} 6... exd4 {[%clk
0:02:59.1]} 7. Nxd4 {[%clk 0:03:03.1]} 7... Qb6 {[%clk 0:02:59.3]} 8. Nf3 {[%clk
0:02:56.7]} 8... Be7 {[%clk 0:02:57.4]} 9. Qe2 {[%clk 0:02:56.3]} 9... O-O
{[%clk 0:02:57.2]} 10. Qe3 {[%clk 0:02:46.1]} 10... Qc7 {[%clk 0:02:50.1]} 11.
Bd2 {[%clk 0:02:29.4]} 11... Nbd7 {[%clk 0:02:47.3]} 12. O-O-O {[%clk
0:02:16.5]} 12... Re8 {[%clk 0:02:47.5]} 13. Rdg1 {[%clk 0:02:11.7]} 13... Nc5
{[%clk 0:02:44.8]} 14. g4 {[%clk 0:02:11.1]} 14... Nxg4 {[%clk 0:02:42.2]} 15.
Rxg4 {[%clk 0:02:02.1]} 15... Nxd3+ {[%clk 0:02:39.2]} 16. Qxd3 {[%clk
0:01:51.2]} 16... Bxg4 {[%clk 0:02:38.7]} 17. Rg1 {[%clk 0:01:49.2]} 17... Bxf3
{[%clk 0:02:35.8]} 18. Qxf3 {[%clk 0:01:51.1]} 18... Bf6 {[%clk 0:02:31.5]} 19.
Ne2 {[%clk 0:01:45]} 19... g6 {[%clk 0:02:30.1]} 20. f5 {[%clk 0:01:30.9]} 20...
Qe7 {[%clk 0:02:22.7]} 21. fxg6 {[%clk 0:01:17.1]} 21... fxg6 {[%clk 0:02:21.3]}
22. Ng3 {[%clk 0:01:16]} 22... Rf8 {[%clk 0:02:20.1]} 23. Nf5 {[%clk 0:01:11.1]}
23... Qe6 {[%clk 0:02:15.1]} 24. Kb1 {[%clk 0:00:57.1]} 24... Rae8 {[%clk
0:02:14.3]} 25. Qh5 {[%clk 0:00:50]} 25... Be5 {[%clk 0:01:38.6]} 26. Qh6 {[%clk
0:00:20.4]} 26... Rxf5 {[%clk 0:01:35]} 27. exf5 {[%clk 0:00:21.9]} 27... Qxf5
{[%clk 0:01:35.8]} 28. Qe3 {[%clk 0:00:17.8]} 28... c5 {[%clk 0:01:33.9]} 29.
Qb3+ {[%clk 0:00:17.6]} 29... Qf7 {[%clk 0:01:33.6]} 30. Qd3 {[%clk 0:00:16.5]}
30... Bd4 {[%clk 0:01:32.8]} 31. Rf1 {[%clk 0:00:17.1]} 31... Qe6 {[%clk
0:01:30.2]} 32. b3 {[%clk 0:00:17.6]} 32... d5 {[%clk 0:01:30.3]} 33. Re1 {[%clk
0:00:18.8]} 33... Qxe1+ {[%clk 0:01:29.1]} 0-1